bitfinex/quotes_BTCUSD_20250527
["timestamp","ask_amount","ask_price","bid_price","bid_amount"]
[1748382890615,0.24269573,108980.0,108970.0,1.51050824]
[1748382890792,0.24269573,108980.0,108970.0,1.59854824]
[1748382891944,0.24269573,108980.0,108970.0,1.60154824]
[1748382892404,0.19269573,108980.0,108970.0,1.69260219]
[1748382893518,0.19269573,108980.0,108970.0,1.71810219]
[1748382893815,0.19269573,108980.0,108970.0,1.73264304]
[1748382894558,0.24219573,108980.0,108970.0,2.00644304]
[1748382894759,0.19269573,108980.0,108970.0,2.00644304]
[1748382896061,0.18348623,109000.0,108990.0,0.0506]
[1748382896260,0.23296772,109020.0,109000.0,0.35454085]
[1748382896398,0.18346772,109020.0,109010.0,1.41495483]
[1748382896600,0.18575137,109020.0,109010.0,1.41495483]
[1748382897038,0.18346772,109020.0,109010.0,1.41495483]
[1748382897521,0.21096985,109020.0,109010.0,2.05187176]
[1748382898155,0.21396985,109020.0,109010.0,2.05187176]
[1748382898363,0.21096985,109020.0,109010.0,2.06104497]
[1748382898573,0.21096985,109020.0,109010.0,2.0702181]
[1748382898785,0.21196985,109020.0,109010.0,2.10339114]
[1748382898987,0.21196985,109020.0,109010.0,2.10339072]
[1748382899637,0.21196985,109020.0,109010.0,2.09421776]
[1748382900066,0.21396985,109020.0,109010.0,2.09421776]
[1748382900281,0.21396985,109020.0,109010.0,1.47318384]
[1748382900502,0.03051652,109020.0,109010.0,2.0942176]
[1748382901172,0.03968898,109020.0,109010.0,2.0942176]
[1748382901378,0.03968898,109020.0,109010.0,2.10818877]
[1748382901580,0.03968898,109020.0,109010.0,1.48715501]
[1748382901793,0.03968898,109020.0,109010.0,2.10818877]
[1748382902233,0.01217195,109020.0,109010.0,2.10818877]
[1748382902460,0.03051661,109020.0,109010.0,2.10818877]
[1748382902682,0.20479723,109020.0,109010.0,1.83962685]
[1748382902902,0.20479723,109020.0,109010.0,2.04144293]
[1748382903747,0.22769723,109020.0,109010.0,1.83954685]
[1748382904665,0.25319723,109020.0,109010.0,1.34802088]
[1748382904941,0.25319723,109020.0,109010.0,1.10808]
[1748382905412,0.25319723,109020.0,109010.0,0.82416]
[1748382905631,0.25319723,109020.0,109010.0,0.73616]
[1748382905849,0.25319723,109020.0,109010.0,0.82416]
[1748382906067,0.25319723,109020.0,109010.0,0.73616]
[1748382906508,0.25319723,109020.0,109010.0,0.39616]
[1748382906727,0.25319723,109020.0,109010.0,0.48416]
[1748382907639,0.25319723,109020.0,109010.0,0.39616]
[1748382907789,0.25319723,109020.0,109010.0,0.48416]
[1748382908720,0.53711723,109020.0,109010.0,0.48416]
[1748382908894,0.62817118,109020.0,109010.0,0.48416]
[1748382909096,0.62817118,109020.0,109010.0,0.21382835]
[1748382909539,0.24735278,108990.0,108980.0,0.61386088]
[1748382909744,0.24735278,108990.0,108980.0,0.70235617]
[1748382909891,0.24735278,108990.0,108980.0,1.04235617]
[1748382910094,0.24735278,108990.0,108980.0,0.70235617]
[1748382910352,0.24735278,108990.0,108980.0,1.04235617]
[1748382911019,0.24735278,108990.0,108980.0,1.32727617]
[1748382911479,0.24735278,108990.0,108980.0,0.43145529]
[1748382911679,0.24735278,108990.0,108980.0,0.71537529]
[1748382912531,0.24735278,108990.0,108980.0,0.95535617]
[1748382912945,0.24735278,108990.0,108980.0,1.04331617]
[1748382913159,0.24735278,108990.0,108980.0,1.04531617]
[1748382914891,0.24735278,108990.0,108980.0,1.32923617]
[1748382915502,0.24735278,108990.0,108980.0,1.04531617]
[1748382915700,0.24735278,108990.0,108980.0,0.43345529]
[1748382917542,0.24735278,108990.0,108980.0,0.09345529]
[1748382919670,0.6588302,108990.0,108980.0,0.00549529]
[1748382919889,0.58735278,108990.0,108980.0,0.09345529]
[1748382920522,0.67840673,108990.0,108980.0,0.09345529]
[1748382920728,0.67840673,108990.0,108980.0,0.09145529]
[1748382920938,0.67840673,108990.0,108980.0,0.09045529]
[1748382921147,0.67940673,108990.0,108980.0,0.09045529]
[1748382921361,0.77146068,108990.0,108980.0,0.09045529]
[1748382921794,0.68040673,108990.0,108980.0,0.09045529]
[1748382922006,0.68040673,108990.0,108980.0,0.00249529]
[1748382932362,0.34040673,108990.0,108980.0,0.00249529]
[1748382935550,0.33940673,108990.0,108980.0,0.00249529]
[1748382935972,0.34140673,108990.0,108980.0,0.00249529]
[1748382936147,0.62440673,108990.0,108980.0,0.00249529]
[1748382936353,0.62640673,108990.0,108980.0,0.00249529]
[1748382937087,0.71374056,108990.0,108980.0,0.00249529]
[1748382942640,0.62636673,108990.0,108980.0,0.00249529]
[1748382966649,0.34240673,108990.0,108980.0,0.00249529]
[1748382966954,0.62632673,108990.0,108980.0,0.00249529]
[1748382973380,0.62628673,108990.0,108980.0,0.00249529]
[1748382979816,0.62624673,108990.0,108980.0,0.00249529]
[1748382988280,1.16818307,108990.0,108980.0,0.00249529]
[1748382989525,1.16618307,108990.0,108980.0,0.00249529]
[1748382989871,1.16918307,108990.0,108980.0,0.00249529]
[1748382990008,1.16718307,108990.0,108980.0,0.00249529]
[1748382990464,1.17018307,108990.0,108980.0,0.00249529]
[1748382991685,1.12018307,108990.0,108980.0,0.00249529]
[1748382993037,1.17018307,108990.0,108980.0,0.00249529]
[1748382993243,1.16418307,108990.0,108980.0,0.00249529]
[1748382993475,1.16818307,108990.0,108980.0,0.00249529]
[1748382993888,1.16618307,108990.0,108980.0,0.00249529]
[1748382994310,1.16818307,108990.0,108980.0,0.00349529]
[1748382994776,1.17218307,108990.0,108980.0,0.00349529]
[1748383003379,1.17218307,108990.0,108940.0,0.48039885]
[1748383003380,0.19274879,108950.0,108940.0,0.48039885]
[1748383003602,0.19274879,108950.0,108940.0,0.56823885]
[1748383004676,0.19274879,108950.0,108940.0,0.56838721]
[1748383004922,0.19274879,108950.0,108940.0,0.57038721]
[1748383005554,0.19274879,108950.0,108940.0,0.57238721]
[1748383006466,0.19274879,108950.0,108940.0,0.58638721]
[1748383009838,0.19274879,108950.0,108940.0,0.12728836]
[1748383010098,0.19274879,108950.0,108940.0,0.58638721]
[1748383012356,0.19274879,108950.0,108940.0,0.57238721]
[1748383012948,0.19274879,108950.0,108940.0,0.58638721]
[1748383013206,0.19274879,108950.0,108940.0,1.04548606]
[1748383013570,0.19274879,108950.0,108940.0,0.95764606]
[1748383013820,0.19274879,108950.0,108940.0,1.03148606]
[1748383014269,0.19274879,108950.0,108940.0,1.04548606]
[1748383014567,0.19274879,108950.0,108940.0,0.58638721]
[1748383014744,0.19274879,108950.0,108940.0,0.57238721]
[1748383015499,0.19274879,108950.0,108940.0,0.58638721]
[1748383017352,0.19274879,108950.0,108940.0,0.12728836]
[1748383017558,0.19274879,108950.0,108940.0,0.58638721]
[1748383017762,0.21544879,108950.0,108940.0,0.55108721]
[1748383017968,0.19274879,108950.0,108940.0,0.55108721]
[1748383018997,0.19274879,108950.0,108940.0,0.57408721]
[1748383020403,0.19274879,108950.0,108940.0,0.45498836]
[1748383020786,0.19274879,108950.0,108940.0,0.43198836]
[1748383022504,0.19274879,108950.0,108940.0,0.89108721]
[1748383024815,0.23774879,108950.0,108940.0,0.89108721]
[1748383025300,0.23774879,108950.0,108940.0,0.43198836]
[1748383032765,0.23774879,108950.0,108940.0,0.4800166]
[1748383032962,0.23774879,108950.0,108940.0,0.43198836]
[1748383049513,0.21554879,108950.0,108940.0,0.89108721]
[1748383050817,0.21554879,108950.0,108940.0,0.89096721]
[1748383051242,0.23714879,108950.0,108940.0,0.43186836]
[1748383055635,0.19274879,108950.0,108940.0,1.37226606]
[1748383056314,0.19274879,108950.0,108940.0,0.89096721]
[1748383057430,0.19274879,108950.0,108940.0,1.29096721]
[1748383058332,0.21554879,108950.0,108940.0,1.29096721]
[1748383059431,0.21554879,108950.0,108940.0,1.68724721]
[1748383060858,0.23654879,108950.0,108940.0,1.68724721]
[1748383063086,0.23654879,108950.0,108940.0,1.22814836]
[1748383070226,0.23654879,108950.0,108940.0,0.82814836]
[1748383083752,0.23654879,108950.0,108940.0,0.48814836]
[1748383086433,0.23654879,108950.0,108940.0,0.09186836]
[1748383094894,0.23654879,108950.0,108940.0,0.09174836]
[1748383095107,0.25329861,108950.0,108940.0,0.09174836]
[1748383095541,0.23654879,108950.0,108940.0,0.09174836]
[1748383095755,0.32760274,108950.0,108940.0,0.09174836]
[1748383096179,0.32760274,108950.0,108900.0,0.46609885]
[1748383096180,0.57388417,108930.0,108900.0,0.007]
[1748383096396,0.58310105,108910.0,108900.0,0.007]
[1748383096617,0.76520895,108910.0,108900.0,0.00704952]
[1748383097345,0.81843794,108910.0,108900.0,0.00704952]
[1748383097759,0.83969536,108910.0,108900.0,0.00704952]
[1748383098196,0.81843794,108910.0,108900.0,0.00704952]
[1748383098420,0.81843794,108910.0,108900.0,0.00811365]
[1748383099257,0.79443062,108910.0,108900.0,0.00911365]
[1748383099467,0.79543062,108910.0,108900.0,0.00911365]
[1748383100765,0.80834575,108910.0,108900.0,0.00911365]
[1748383100974,0.80788666,108910.0,108900.0,0.00911365]
[1748383101257,0.81088666,108910.0,108900.0,0.00911365]
[1748383101927,0.83224807,108910.0,108900.0,0.00911365]
[1748383102343,0.81224807,108910.0,108900.0,0.00911365]
[1748383102559,0.83061126,108910.0,108900.0,0.00911365]
[1748383104707,0.84165816,108910.0,108900.0,0.00911365]
[1748383104920,0.86866548,108910.0,108900.0,0.00911365]
[1748383105590,0.24383815,108890.0,108880.0,0.002]
[1748383105803,0.98439377,108890.0,108880.0,0.00204952]
[1748383106682,0.57467271,108880.0,108870.0,0.0001644]
[1748383106903,0.69194833,108880.0,108870.0,0.00025506]
[1748383107136,0.71895565,108880.0,108870.0,0.00025506]
[1748383107364,0.53289042,108870.0,108860.0,0.002]
[1748383107578,1.09007832,108870.0,108860.0,0.002]
[1748383107811,1.14330731,108870.0,108860.0,0.002]
[1748383108462,1.14330731,108870.0,108850.0,0.03339509]
[1748383108463,0.542094,108860.0,108850.0,0.03339509]
[1748383108677,0.70186962,108860.0,108850.0,0.03339509]
[1748383108888,0.79292357,108860.0,108850.0,0.03339509]
[1748383109545,0.79993089,108860.0,108850.0,0.03339509]
[1748383109771,0.80911683,108860.0,108850.0,0.03339509]
[1748383111093,0.81211683,108860.0,108850.0,0.03439509]
[1748383111379,0.81211683,108860.0,108850.0,0.01286914]
[1748383111597,0.19297905,108820.0,108810.0,0.36683503]
[1748383111816,0.19297905,108820.0,108810.0,0.46292868]
[1748383112241,0.19297905,108820.0,108810.0,0.38973222]
[1748383112457,0.19297905,108820.0,108810.0,0.38473222]
[1748383112666,0.19297905,108820.0,108810.0,0.38472816]
[1748383112881,0.19312718,108820.0,108810.0,0.38472816]
[1748383113706,0.19412718,108820.0,108810.0,0.38672556]
[1748383114122,0.19512718,108820.0,108810.0,0.39172556]
[1748383114746,0.21592718,108820.0,108810.0,0.39172316]
[1748383114958,0.19512718,108820.0,108810.0,0.39172316]
[1748383115370,0.19512718,108820.0,108810.0,0.3917245]
[1748383116243,0.19512718,108820.0,108810.0,0.38323863]
[1748383116464,0.19512718,108820.0,108810.0,0.3917245]
[1748383116722,0.17512718,108820.0,108810.0,0.3917245]
[1748383116934,0.17512718,108820.0,108810.0,0.39172343]
[1748383117149,0.18431649,108820.0,108810.0,0.39172343]
[1748383117774,0.18431649,108820.0,108810.0,0.3917252]
[1748383118870,0.22601649,108820.0,108810.0,0.3917252]
[1748383119081,0.22601649,108820.0,108810.0,0.39172825]
[1748383119930,0.22601649,108820.0,108810.0,0.39172828]
[1748383120139,0.22601649,108820.0,108810.0,0.38323863]
[1748383120352,0.22601649,108820.0,108810.0,0.38472829]
[1748383120353,0.22401649,108820.0,108810.0,0.38472829]
[1748383120636,0.22501649,108820.0,108810.0,0.38672829]
[1748383120853,0.22501649,108820.0,108810.0,0.30212829]
[1748383121286,0.22501649,108820.0,108810.0,0.30213341]
[1748383121496,0.22501649,108820.0,108810.0,0.29913341]
[1748383121720,0.22501649,108820.0,108810.0,0.29913901]
[1748383121976,0.29423142,108820.0,108810.0,0.30113901]
[1748383122210,0.38528537,108820.0,108810.0,0.01250038]
[1748383122454,0.38428537,108820.0,108810.0,0.01050038]
[1748383122864,0.38528537,108820.0,108810.0,0.003]
[1748383123281,0.38528537,108820.0,108810.0,0.0115064]
[1748383123713,0.29607044,108820.0,108810.0,0.0115064]
[1748383124334,0.29607044,108820.0,108810.0,0.003]
[1748383124552,0.29607044,108820.0,108810.0,0.01151501]
[1748383124961,0.29607044,108820.0,108810.0,0.01152652]
[1748383126615,0.29607044,108820.0,108810.0,0.01154024]
[1748383126824,0.32718739,108820.0,108810.0,0.003]
[1748383127238,0.32718739,108820.0,108810.0,0.01154165]
[1748383127869,0.32718739,108820.0,108810.0,0.003]
[1748383128080,0.61058739,108820.0,108810.0,0.01154395]
[1748383128507,0.61058739,108820.0,108810.0,0.003]
[1748383128973,0.61058739,108820.0,108810.0,0.01154727]
[1748383129218,0.61058739,108820.0,108810.0,0.01154737]
[1748383130126,0.61058739,108820.0,108810.0,0.01155055]
[1748383130365,0.61058739,108820.0,108810.0,0.01155056]
[1748383130848,0.59058739,108820.0,108810.0,0.01155056]
[1748383131078,0.59012792,108820.0,108810.0,0.01155056]
[1748383131326,0.59012792,108820.0,108810.0,0.01155045]
[1748383131541,0.23719679,108810.0,108800.0,0.1539248]
[1748383131972,0.32825074,108810.0,108800.0,0.1539248]
[1748383132629,0.32925074,108810.0,108800.0,0.1549248]
[1748383132848,0.39957781,108810.0,108800.0,0.1549248]
[1748383133530,0.39957781,108810.0,108800.0,0.1559248]
[1748383134174,0.39857781,108810.0,108800.0,0.1549248]
[1748383134381,0.32825074,108810.0,108800.0,0.1539248]
[1748383134587,0.32925074,108810.0,108800.0,0.1539248]
[1748383135655,0.33125074,108810.0,108800.0,0.1539248]
[1748383137847,0.31125074,108810.0,108800.0,0.1539248]
[1748383138250,0.3204409,108810.0,108800.0,0.1539248]
[1748383138736,0.39409176,108810.0,108800.0,0.1539248]
[1748383139609,0.3204409,108810.0,108800.0,0.1539248]
[1748383140114,0.6038809,108810.0,108800.0,0.1539248]
[1748383142494,0.3204409,108810.0,108800.0,0.1539248]
[1748383142704,0.6038809,108810.0,108800.0,0.1539248]
[1748383144242,0.3204409,108810.0,108800.0,0.1539248]
[1748383144474,0.22938695,108810.0,108800.0,0.16932824]
[1748383144704,0.46862695,108810.0,108800.0,0.1539248]
[1748383144936,0.16518695,108810.0,108800.0,0.1539248]
[1748383145156,0.4509106,108810.0,108800.0,0.1539248]
[1748383145380,0.44862695,108810.0,108800.0,0.1539248]
[1748383145837,0.16518695,108810.0,108800.0,0.1539248]
[1748383146062,0.1674706,108810.0,108800.0,0.1539248]
[1748383146351,0.1674706,108810.0,108800.0,0.17183801]
[1748383146578,0.44862695,108810.0,108800.0,0.87770472]
[1748383146804,0.16518695,108810.0,108800.0,0.1539248]
[1748383147027,0.44862695,108810.0,108800.0,0.2415248]
[1748383148905,0.16518695,108810.0,108800.0,0.2415248]
[1748383151813,0.20808695,108810.0,108800.0,0.2415248]
[1748383152039,0.18808695,108810.0,108800.0,0.2415248]
[1748383153240,0.16608695,108810.0,108800.0,0.2415248]
[1748383153465,0.14518695,108810.0,108800.0,0.2415248]
[1748383154673,0.14518695,108810.0,108800.0,0.96785867]
[1748383155109,0.14518695,108810.0,108800.0,0.98925867]
[1748383159133,0.12518695,108810.0,108800.0,0.98925867]
[1748383160250,0.12518695,108810.0,108800.0,0.96785867]
[1748383160926,0.12472744,108810.0,108800.0,0.96785867]
[1748383161154,0.20518686,108810.0,108800.0,1.19511413]
[1748383162043,0.19599679,108810.0,108800.0,1.19511413]
[1748383162255,0.19599679,108810.0,108800.0,1.20430513]
[1748383163384,0.19599679,108810.0,108800.0,1.19511413]
[1748383163608,0.19599679,108810.0,108800.0,1.20430513]
[1748383164036,0.19599679,108810.0,108800.0,1.61349605]
[1748383164251,0.19599679,108810.0,108800.0,1.59511413]
[1748383164466,0.19599679,108810.0,108800.0,1.59511421]
[1748383164683,0.19599679,108810.0,108800.0,0.7890196]
[1748383164896,0.19599679,108810.0,108800.0,1.40209952]
[1748383165106,0.19599679,108810.0,108800.0,1.59511404]
[1748383165332,0.19599679,108810.0,108800.0,1.59511421]
[1748383165548,0.19599679,108810.0,108800.0,1.40209952]
[1748383166178,0.17599679,108810.0,108800.0,1.40209952]
[1748383166406,0.18518695,108810.0,108800.0,1.40209952]
[1748383166834,0.18518695,108810.0,108800.0,1.68169952]
[1748383167489,0.18518695,108810.0,108800.0,1.65949952]
[1748383169481,0.18518695,108810.0,108800.0,1.99949952]
[1748383169702,0.18518695,108810.0,108800.0,2.18332304]
[1748383169912,0.18518695,108810.0,108800.0,1.99949952]
[1748383170335,0.18518695,108810.0,108800.0,1.71669952]
[1748383170550,0.18518695,108810.0,108800.0,1.70019952]
[1748383172030,0.18518695,108810.0,108800.0,1.98347952]
[1748383173082,0.18518695,108810.0,108800.0,2.16730304]
[1748383173296,0.16518695,108810.0,108800.0,1.98347952]
[1748383173719,0.16518695,108810.0,108800.0,2.16730304]
[1748383173924,0.16518695,108810.0,108800.0,1.58347952]
[1748383174797,0.16518695,108810.0,108800.0,1.59267069]
[1748383175004,0.16518695,108810.0,108800.0,1.58347952]
[1748383176294,0.16288937,108810.0,108800.0,1.58347952]
[1748383176519,0.16288937,108810.0,108800.0,1.77649413]
[1748383176736,0.21137634,108810.0,108800.0,2.44066488]
[1748383176943,0.22056667,108810.0,108800.0,1.80598496]
[1748383177182,0.22056667,108810.0,108800.0,1.78568496]
[1748383178079,0.22056667,108810.0,108800.0,2.18568496]
[1748383178294,0.21137702,108810.0,108800.0,2.18568496]
[1748383179381,0.21137702,108810.0,108800.0,2.22788496]
[1748383179604,0.21137702,108810.0,108800.0,2.20648496]
[1748383179835,0.20218712,108810.0,108800.0,2.18568496]
[1748383180542,0.18218712,108810.0,108800.0,2.18568496]
[1748383181706,0.22228712,108810.0,108800.0,2.18568496]
[1748383182152,0.18218712,108810.0,108800.0,2.18568496]
[1748383183005,0.18218712,108810.0,108800.0,2.58244496]
[1748383183441,0.22308712,108810.0,108800.0,2.58244496]
[1748383184063,0.18218712,108810.0,108800.0,2.58244496]
[1748383184281,0.22308712,108810.0,108800.0,2.58244496]
[1748383184908,0.24308712,108810.0,108800.0,2.58244496]
[1748383185766,0.20218712,108810.0,108800.0,2.58244496]
[1748383186205,0.22308712,108810.0,108800.0,2.58244496]
[1748383187263,0.20218712,108810.0,108800.0,2.58244496]
[1748383187695,0.24418712,108810.0,108800.0,2.58244496]
[1748383188116,0.20218712,108810.0,108800.0,2.59163562]
[1748383188329,0.24418712,108810.0,108800.0,2.58244496]
[1748383188562,0.22418712,108810.0,108800.0,2.58244496]
[1748383189472,0.23337745,108810.0,108800.0,2.58244496]
[1748383190126,0.23337745,108810.0,108800.0,2.59163571]
[1748383190545,0.23337745,108810.0,108800.0,2.58244496]
[1748383190970,0.23291794,108810.0,108800.0,2.58244496]
[1748383191230,0.23291794,108810.0,108800.0,2.59163571]
[1748383191655,0.23291794,108810.0,108800.0,2.58244496]
[1748383192944,0.23291794,108810.0,108800.0,2.59163571]
[1748383193595,0.23291794,108810.0,108800.0,2.58244496]
[1748383193825,0.23291794,108810.0,108800.0,2.59163571]
[1748383194040,0.17426771,108820.0,108810.0,0.20218703]
[1748383194257,0.01837635,108830.0,108820.0,0.21134156]
[1748383194467,0.01837635,108830.0,108820.0,1.97739465]
[1748383194468,0.00918788,108830.0,108820.0,1.97739465]
[1748383194683,0.00918788,108830.0,108820.0,2.83761284]
[1748383194902,0.02756178,108840.0,108830.0,0.5658786]
[1748383195136,0.01837339,108850.0,108840.0,0.21667181]
[1748383195367,0.00918585,108860.0,108850.0,0.23502639]
[1748383195598,0.19290832,108860.0,108850.0,1.59878392]
[1748383195817,0.19127977,108860.0,108850.0,1.59878392]
[1748383196036,0.20046562,108860.0,108850.0,1.28225698]
[1748383196472,0.20046562,108860.0,108850.0,1.29144385]
[1748383196682,0.20046562,108860.0,108850.0,1.30063046]
[1748383196683,0.01837196,108860.0,108850.0,1.30063046]
[1748383196899,0.21227977,108860.0,108850.0,1.30363063]
[1748383197334,0.20309417,108860.0,108850.0,1.31281733]
[1748383197555,0.20309417,108860.0,108850.0,1.32200386]
[1748383198048,0.02955747,108860.0,108850.0,1.66500377]
[1748383198269,0.002,108860.0,108850.0,1.66500318]
[1748383198475,0.0295568,108860.0,108850.0,1.68560318]
[1748383198708,0.03874274,108860.0,108850.0,1.68560318]
[1748383198936,0.03874274,108860.0,108850.0,2.08560318]
[1748383199369,0.03874257,108860.0,108850.0,2.08560318]
[1748383199796,0.0387424,108860.0,108850.0,2.08560318]
[1748383200006,0.04792834,108860.0,108850.0,2.08560318]
[1748383200237,0.02955663,108860.0,108850.0,2.08560318]
[1748383200464,0.02036959,108870.0,108860.0,0.22582036]
[1748383200685,0.002,108870.0,108860.0,0.92078494]
[1748383200901,0.02036909,108870.0,108860.0,1.29057045]
[1748383201136,0.02036959,108870.0,108860.0,1.69057045]
[1748383201351,0.02036935,108870.0,108860.0,2.04049045]
[1748383201576,0.02955419,108870.0,108860.0,2.04049045]
[1748383201803,0.22285671,108880.0,108870.0,0.00918526]
[1748383202025,0.03673911,108870.0,108860.0,0.93833977]
[1748383202245,0.03673902,108870.0,108860.0,1.02988674]
[1748383202461,0.03773902,108870.0,108860.0,1.47991498]
[1748383202677,0.01773902,108870.0,108860.0,1.43188674]
[1748383202911,0.01673902,108870.0,108860.0,1.42788674]
[1748383203349,0.04429337,108870.0,108860.0,1.67046288]
[1748383203573,0.24227534,108870.0,108860.0,0.17898697]
[1748383203820,0.24227534,108870.0,108860.0,0.00049302]
[1748383204496,0.2423124,108850.0,108840.0,0.39876]
[1748383204727,0.2423124,108850.0,108840.0,0.48616]
[1748383204966,0.2423124,108850.0,108840.0,0.002]
[1748383205952,0.2423124,108850.0,108840.0,0.00429671]
[1748383206173,0.2433124,108850.0,108840.0,0.00729671]
[1748383206608,0.2433124,108850.0,108840.0,0.01029671]
[1748383208123,0.2433124,108850.0,108840.0,1.0544468]
[1748383208335,0.2433124,108850.0,108840.0,1.05215009]
[1748383208554,0.02855967,108850.0,108840.0,1.24509377]
[1748383208784,0.21229901,108850.0,108840.0,1.63011462]
[1748383208995,0.19392587,108850.0,108840.0,1.63930224]
[1748383209206,0.18473909,108850.0,108840.0,1.63930224]
[1748383209423,0.18473909,108850.0,108840.0,1.64848978]
[1748383209631,0.18473909,108850.0,108840.0,2.03594224]
[1748383209856,0.16473909,108850.0,108840.0,2.0451297]
[1748383210295,0.17392587,108850.0,108840.0,2.05431707]
[1748383210523,0.0183728,108850.0,108840.0,2.06350385]
[1748383210736,0.0275595,108850.0,108840.0,2.06350385]
[1748383210950,0.03674628,108850.0,108840.0,2.06350385]
[1748383211170,0.18373739,108860.0,108840.0,2.0359414]
[1748383211385,0.20470056,108870.0,108860.0,0.34]
[1748383211386,0.22570056,108870.0,108860.0,0.34]
[1748383211594,0.22570056,108870.0,108860.0,1.41463009]
[1748383211824,0.20470056,108870.0,108860.0,1.41463009]
[1748383212032,0.18420056,108870.0,108860.0,1.41463009]
[1748383213392,0.19338582,108870.0,108860.0,1.62207917]
[1748383213595,0.19438582,108870.0,108860.0,1.62407917]
[1748383213802,0.18520056,108870.0,108860.0,1.43117094]
[1748383214012,0.18520056,108870.0,108860.0,1.39275589]
[1748383214223,0.18520056,108870.0,108860.0,1.58658421]
[1748383214224,0.00149523,108870.0,108860.0,1.58658421]
[1748383214447,0.02904932,108870.0,108860.0,1.61414151]
[1748383215086,0.03823441,108870.0,108860.0,1.61414151]
[1748383215865,0.03823441,108870.0,108860.0,2.01414151]
[1748383216436,0.23112568,108870.0,108860.0,2.01414151]
[1748383216859,0.21112568,108870.0,108860.0,2.01414151]
[1748383217281,0.21112568,108870.0,108860.0,1.43946042]
[1748383217494,0.22949527,108870.0,108860.0,2.01414151]
[1748383217699,0.04578994,108870.0,108860.0,2.01414151]
[1748383217911,0.22949527,108870.0,108860.0,2.01414151]
[1748383219759,0.22949527,108870.0,108860.0,1.67414151]
[1748383220584,0.03660468,108870.0,108860.0,1.67414151]
[1748383221059,0.03614542,108870.0,108860.0,1.67414151]
[1748383221960,0.03614542,108870.0,108860.0,1.09946042]
[1748383222378,0.03614542,108870.0,108860.0,1.67414151]
[1748383222613,0.00918467,108870.0,108860.0,1.67414151]
[1748383222821,0.0275546,108870.0,108860.0,1.72216975]
[1748383223027,0.0275546,108870.0,108860.0,1.09946042]
[1748383223207,0.0275546,108870.0,108860.0,1.67414151]
[1748383223447,0.01836951,108870.0,108860.0,1.67414151]
[1748383223606,0.03673961,108870.0,108860.0,1.67414151]
[1748383223799,0.01673961,108870.0,108860.0,2.01414151]
[1748383224221,0.02755443,108870.0,108860.0,2.01414151]
[1748383224426,0.22044485,108870.0,108860.0,2.01414151]
[1748383224606,0.22963011,108870.0,108860.0,1.43946042]
[1748383224812,0.22963011,108870.0,108860.0,2.004956]
[1748383225049,0.22963011,108870.0,108860.0,2.0141416]
[1748383225464,0.22963011,108870.0,108860.0,2.02554298]
[1748383225889,0.22044544,108870.0,108860.0,2.02554298]
[1748383226709,0.22044544,108870.0,108860.0,1.44167629]
[1748383226916,0.22044544,108870.0,108860.0,2.01635738]
[1748383227119,0.22044544,108870.0,108860.0,2.06438562]
[1748383227322,0.22044544,108870.0,108860.0,2.01635738]
[1748383227528,0.22044544,108870.0,108860.0,2.41287738]
[1748383227921,0.2112606,108870.0,108860.0,2.41287738]
[1748383228120,0.2112606,108870.0,108860.0,2.42206306]
[1748383228375,0.2112606,108870.0,108860.0,2.43124857]
[1748383228578,0.2112606,108870.0,108860.0,2.42206306]
[1748383228994,0.2112606,108870.0,108860.0,2.43124866]
[1748383230041,0.2112606,108870.0,108860.0,2.43124806]
[1748383230254,0.20207534,108870.0,108860.0,2.42206255]
[1748383230679,0.2112606,108870.0,108860.0,2.42206255]
[1748383231134,0.1912606,108870.0,108860.0,1.83598008]
[1748383231352,0.1912606,108870.0,108860.0,2.41066117]
[1748383231611,0.20963061,108870.0,108860.0,2.41066117]
[1748383232050,0.01837001,108870.0,108860.0,2.41984668]
[1748383232266,0.21126052,108870.0,108860.0,2.41984668]
[1748383232475,0.21126052,108870.0,108860.0,2.41066117]
[1748383232680,0.21126052,108870.0,108860.0,2.40147557]
[1748383232904,0.21126052,108870.0,108860.0,1.82679448]
[1748383233130,0.21126052,108870.0,108860.0,2.40147557]
[1748383233360,0.21126052,108870.0,108860.0,1.83597999]
[1748383233581,0.21126052,108870.0,108860.0,2.40147557]
[1748383233803,0.23206052,108870.0,108860.0,2.40147557]
[1748383234672,0.23206052,108870.0,108860.0,2.39228989]
[1748383234900,0.24124578,108870.0,108860.0,2.38310412]
[1748383235115,0.25236086,108870.0,108860.0,2.38310412]
[1748383235333,0.25236086,108870.0,108860.0,2.39229006]
[1748383235560,0.25236086,108870.0,108860.0,2.40147583]
[1748383235774,0.24317577,108870.0,108860.0,2.39229006]
[1748383236050,0.24317577,108870.0,108860.0,2.4305401]
[1748383236923,0.23399059,108870.0,108860.0,1.85804593]
[1748383237157,0.23399059,108870.0,108860.0,0.49057395]
[1748383237382,0.23399059,108870.0,108860.0,0.003]
[1748383237598,0.23399059,108870.0,108860.0,0.09032]
[1748383238035,0.21399059,108870.0,108860.0,0.09032]
[1748383241991,0.21399059,108870.0,108860.0,0.003]
[1748383242209,0.21399059,108870.0,108860.0,0.09032]
[1748383245246,0.19399059,108870.0,108860.0,0.09032]
[1748383246993,0.19399059,108870.0,108860.0,0.003]
[1748383248294,0.21479059,108870.0,108860.0,0.09024]
[1748383249210,0.21479059,108870.0,108860.0,0.003]
[1748383249426,0.30584454,108870.0,108860.0,0.003]
[1748383249645,0.30584454,108870.0,108850.0,0.4838]
[1748383249646,0.23530815,108860.0,108850.0,0.4838]
[1748383250912,0.23484885,108860.0,108850.0,0.4838]
[1748383251552,0.23484885,108860.0,108850.0,0.4848]
[1748383252191,0.21484885,108860.0,108850.0,0.4848]
[1748383252410,0.21584885,108860.0,108850.0,0.4868]
[1748383252609,0.22503479,108860.0,108850.0,0.4868]
[1748383254366,0.22503479,108860.0,108850.0,0.39956]
[1748383254607,0.22503479,108860.0,108850.0,0.003]
[1748383254608,0.31608874,108860.0,108850.0,0.003]
[1748383254841,0.31608874,108860.0,108840.0,0.002]
[1748383254842,0.57452587,108850.0,108840.0,0.002]
[1748383255075,0.24376811,108820.0,108810.0,0.3966]
[1748383255312,0.24376811,108820.0,108810.0,0.48388]
[1748383255762,0.24376811,108820.0,108810.0,0.29879097]
[1748383255978,0.24376811,108820.0,108810.0,0.10301396]
[1748383256414,0.24376811,108820.0,108810.0,0.01622919]
[1748383257255,0.24376811,108820.0,108810.0,0.01722919]
[1748383257464,0.24476811,108820.0,108810.0,0.01922919]
[1748383257889,0.24476811,108820.0,108810.0,0.00349523]
[1748383259375,0.22476811,108820.0,108810.0,0.00349523]
[1748383259590,0.24314648,108820.0,108810.0,0.00349523]
[1748383266353,0.22314648,108820.0,108810.0,0.00349523]
[1748383270290,0.31420043,108820.0,108810.0,0.00349523]
[1748383273630,0.29420043,108820.0,108810.0,0.00349523]
[1748383279039,0.63420043,108820.0,108810.0,0.00349523]
[1748383280531,0.61420043,108820.0,108810.0,0.00349523]
[1748383280996,0.61274096,108820.0,108810.0,0.00149523]
[1748383281218,0.61374096,108820.0,108810.0,0.00249523]
[1748383281467,0.61474096,108820.0,108810.0,0.00249523]
[1748383281682,0.90270096,108820.0,108810.0,0.00249523]
[1748383282377,0.90257096,108820.0,108810.0,0.00249523]